bitfinex-derivatives/quotes_BTCF0:USTF0_20241010
["timestamp","ask_amount","ask_price","bid_price","bid_amount"]
[1728594160112,0.02861456,59820.0,59819.0,0.114273]
[1728594160414,0.02861456,59820.0,59819.0,0.475073]
[1728594161314,0.3608,59833.0,59820.0,0.083671]
[1728594161625,0.273649,59837.0,59831.0,0.083655]
[1728594161814,0.19,59834.0,59831.0,0.083655]
[1728594162620,0.009,59833.0,59831.0,0.083655]
[1728594163414,0.199,59834.0,59831.0,0.085655]
[1728594164021,0.275652,59834.0,59831.0,0.001]
[1728594164213,0.007,59833.0,59831.0,0.002]
[1728594165613,0.197,59834.0,59831.0,0.002]
[1728594166820,0.19,59834.0,59831.0,0.001]
[1728594167122,0.007,59833.0,59831.0,0.002]
[1728594168524,0.007,59833.0,59829.0,0.083658]
[1728594168525,0.19,59834.0,59829.0,0.083658]
[1728594168824,0.007,59834.0,59831.0,0.002]
[1728594169916,0.007,59833.0,59831.0,0.002]
[1728594170112,0.19,59832.0,59831.0,0.002]
[1728594173932,0.13140181,59832.0,59831.0,0.002]
[1728594174229,0.21505681,59832.0,59831.0,0.06844944]
[1728594174825,0.21505681,59832.0,59831.0,0.002]
[1728594175226,0.21505681,59832.0,59831.0,0.06844944]
[1728594175428,0.21505681,59832.0,59831.0,0.06744944]
[1728594175626,0.22205681,59832.0,59831.0,0.06844944]
[1728594176427,0.22205681,59832.0,59831.0,0.002]
[1728594176622,0.22205681,59832.0,59831.0,0.06826004]
[1728594176830,0.24631987,59832.0,59831.0,0.06826004]
[1728594177221,0.24631987,59832.0,59831.0,0.002]
[1728594177734,0.083659,59829.0,59828.0,0.08323884]
[1728594178035,0.083662,59827.0,59824.0,0.08323884]
[1728594178234,0.3608,59829.0,59824.0,0.08323884]
[1728594178235,0.19,59825.0,59824.0,0.08323884]
[1728594178531,0.19,59825.0,59824.0,0.21074845]
[1728594179134,0.19,59825.0,59824.0,0.08323884]
[1728594179336,0.19,59825.0,59824.0,0.12750966]
[1728594179529,0.195,59825.0,59824.0,0.12750966]
[1728594179730,0.195,59825.0,59824.0,0.12850966]
[1728594180930,0.195,59825.0,59824.0,0.001]
[1728594183737,0.278664,59825.0,59824.0,0.001]
[1728594187136,0.30273795,59825.0,59824.0,0.001]
[1728594188440,0.24273795,59825.0,59824.0,0.001]
[1728594188929,0.24273795,59825.0,59824.0,0.22839466]
[1728594189239,0.60353795,59825.0,59824.0,0.12750805]
[1728594189746,0.60353795,59825.0,59824.0,0.12751922]
[1728594191234,0.60353795,59825.0,59824.0,0.21083864]
[1728594192037,0.73353795,59825.0,59824.0,0.13690235]
[1728594192239,1.83501795,59825.0,59818.0,0.3608]
[1728594192444,0.213673,59819.0,59818.0,0.3608]
[1728594192741,0.083673,59819.0,59818.0,0.3608]
[1728594192941,0.213673,59819.0,59818.0,0.3608]
[1728594193337,0.343673,59819.0,59818.0,0.3608]
[1728594193639,0.26,59819.0,59814.0,0.10001511]
[1728594193937,0.4908,59815.0,59811.0,0.00250758]
[1728594194138,0.213683,59812.0,59811.0,0.00250758]
[1728594195835,0.213683,59812.0,59811.0,0.00850758]
[1728594196144,0.214683,59812.0,59811.0,0.01650758]
[1728594196531,0.274683,59812.0,59811.0,0.01650758]
[1728594202149,0.635483,59812.0,59811.0,0.01650758]
[1728594203339,0.66021992,59812.0,59811.0,0.01650758]
[1728594205764,0.66021992,59812.0,59811.0,0.08316142]
[1728594206051,0.66021992,59812.0,59811.0,0.01650758]
[1728594206250,0.34466464,59812.0,59811.0,0.01650758]
[1728594206450,0.34466464,59812.0,59811.0,0.16389158]
[1728594207549,0.02473692,59812.0,59811.0,0.16389158]
[1728594207744,0.28188559,59815.0,59811.0,0.16389158]
[1728594207943,0.28188559,59815.0,59814.0,0.06661239]
[1728594208955,0.28788559,59815.0,59814.0,0.06661239]
[1728594209639,0.29088559,59815.0,59814.0,0.06861239]
[1728594210353,0.31522702,59815.0,59814.0,0.06861239]
[1728594211057,0.31522702,59815.0,59814.0,0.002]
[1728594211556,0.31322702,59815.0,59814.0,0.001]
[1728594211754,0.31522702,59815.0,59814.0,0.002]
[1728594211945,0.31622702,59815.0,59814.0,0.002]
[1728594213360,0.31622702,59815.0,59814.0,0.06861239]
[1728594213656,0.083691,59806.0,59805.0,0.0039]
[1728594213859,0.19,59806.0,59799.0,0.10001511]
[1728594214056,0.083701,59799.0,59798.0,0.3608]
[1728594214257,0.083707,59795.0,59791.0,0.114511]
[1728594214963,0.19,59792.0,59791.0,0.114511]
[1728594215259,0.19,59792.0,59791.0,0.25009034]
[1728594215465,0.19,59792.0,59791.0,0.122511]
[1728594215950,0.273711,59792.0,59791.0,0.0388]
[1728594216150,0.273711,59792.0,59791.0,0.008]
[1728594216462,0.275711,59792.0,59789.0,0.0691621]
[1728594216764,0.083713,59790.0,59789.0,0.0691621]
[1728594217256,0.083723,59783.0,59778.0,0.3608]
[1728594217559,0.083725,59782.0,59778.0,0.3608]
[1728594217763,0.19,59779.0,59778.0,0.3608]
[1728594218548,0.19,59779.0,59778.0,0.44453]
[1728594218765,0.19,59779.0,59778.0,0.45353]
[1728594219258,0.19,59779.0,59778.0,0.46353]
[1728594220353,0.001,59779.0,59778.0,0.3828]
[1728594220662,0.3608,59792.0,59778.0,1.67464]
[1728594220663,0.19,59789.0,59778.0,1.67464]
[1728594220855,0.19,59789.0,59785.0,0.08372]
[1728594221057,0.19,59789.0,59786.0,0.0328]
[1728594221259,0.083718,59787.0,59786.0,0.0328]
[1728594222367,0.083718,59787.0,59786.0,0.0348]
[1728594223364,0.083718,59787.0,59786.0,0.0388]
[1728594226161,0.3608,59787.0,59786.0,0.07253053]
[1728594226360,0.444518,59787.0,59786.0,0.006]
[1728594234371,0.083723,59777.0,59776.0,0.3647]
[1728594234579,0.09226096,59777.0,59776.0,0.3608]
[1728594235571,0.09226096,59777.0,59776.0,0.3738]
[1728594235978,0.09226096,59777.0,59776.0,1.8738]
[1728594236779,0.28226096,59777.0,59776.0,0.013]
[1728594236975,0.083727,59774.0,59767.0,0.0039]
[1728594237173,0.083727,59774.0,59761.0,0.50828347]
[1728594237174,0.08374,59765.0,59764.0,0.0039]
[1728594237376,0.083744,59762.0,59756.0,0.3608]
[1728594237686,0.463751,59757.0,59756.0,0.3608]
[1728594237980,0.273751,59757.0,59756.0,0.3608]
[1728594239180,0.463751,59757.0,59756.0,0.3608]
[1728594240278,0.48970141,59757.0,59756.0,0.3688]
[1728594240672,0.29970141,59757.0,59756.0,0.3688]
[1728594240868,0.30070141,59757.0,59756.0,0.3738]
[1728594242379,0.21695041,59757.0,59756.0,0.013]
[1728594242775,0.30070141,59757.0,59756.0,0.013]
[1728594243374,0.30070141,59757.0,59756.0,0.09618347]
[1728594244279,0.30070141,59757.0,59756.0,0.09630033]
[1728594244576,0.30070141,59757.0,59756.0,0.22395707]
[1728594245283,0.30070141,59757.0,59756.0,0.22395708]
[1728594246080,0.30070141,59757.0,59756.0,0.013]
[1728594249485,0.85150141,59757.0,59756.0,0.013]
[1728594249680,0.08376,59751.0,59750.0,0.00251014]
[1728594249884,0.083765,59747.0,59746.0,0.08330033]
[1728594250085,0.273765,59747.0,59746.0,0.08330033]
[1728594250284,0.083767,59746.0,59745.0,0.44410033]
[1728594250874,0.083767,59746.0,59745.0,0.57177525]
[1728594251286,0.04185149,59746.0,59745.0,0.57177525]
[1728594251482,0.04185149,59746.0,59745.0,0.57977525]
[1728594251783,0.04185149,59746.0,59745.0,0.45210033]
[1728594251784,0.04285149,59746.0,59745.0,0.45210033]
[1728594251989,0.001,59746.0,59745.0,0.53586833]
[1728594252175,0.001,59746.0,59745.0,0.58024135]
[1728594252381,0.002,59746.0,59745.0,0.58824135]
[1728594253889,0.29831899,59753.0,59749.0,0.083762]
[1728594254080,0.29831899,59753.0,59752.0,0.44398929]
[1728594254285,0.29831899,59753.0,59752.0,0.48846011]
[1728594254685,0.29831899,59753.0,59752.0,0.444]
[1728594255387,0.29831899,59753.0,59752.0,0.57166371]
[1728594255883,0.29831899,59753.0,59752.0,0.57466371]
[1728594256083,0.29831899,59753.0,59752.0,0.3638]
[1728594257988,0.10831899,59753.0,59752.0,0.3638]
[1728594258311,0.083754,59756.0,59752.0,0.447558]
[1728594258502,0.083754,59756.0,59753.0,0.0322]
[1728594258680,0.273754,59756.0,59753.0,0.0322]
[1728594259285,0.29865972,59756.0,59753.0,0.0322]
[1728594260587,0.083754,59755.0,59753.0,0.0322]
[1728594261197,0.083755,59754.0,59753.0,0.0322]
[1728594262096,0.083755,59754.0,59753.0,0.0332]
[1728594262900,0.083755,59754.0,59753.0,0.001]
[1728594263193,1.185835,59754.0,59753.0,0.001]
[1728594263389,1.218535,59754.0,59753.0,0.001]
[1728594263584,1.218535,59754.0,59745.0,0.3647]
[1728594263585,0.083767,59746.0,59745.0,0.3647]
[1728594263798,0.273767,59746.0,59745.0,0.3608]
[1728594264188,0.083763,59749.0,59745.0,0.48847495]
[1728594264384,0.083767,59746.0,59745.0,0.3608]
[1728594264594,0.274767,59746.0,59745.0,0.64887697]
[1728594264794,0.275767,59746.0,59745.0,0.65787697]
[1728594268103,0.275767,59746.0,59745.0,0.65787706]
[1728594271197,0.275767,59746.0,59745.0,0.3748]
[1728594273609,0.275767,59746.0,59745.0,0.014]
[1728594279101,0.275767,59746.0,59745.0,0.29707752]
[1728594282307,0.275767,59746.0,59745.0,0.14167513]
[1728594284911,0.002,59746.0,59745.0,0.097768]
[1728594285921,0.02386531,59749.0,59745.0,0.29704731]
[1728594286122,0.08376,59751.0,59748.0,0.3608]
[1728594287118,0.02414814,59752.0,59748.0,0.3608]
[1728594287326,0.273753,59756.0,59751.0,0.08376]
[1728594287518,0.273753,59756.0,59755.0,0.3608]
[1728594288620,0.19,59756.0,59752.0,0.0311]
[1728594288823,0.19,59753.0,59752.0,0.0311]
[1728594290128,0.19,59753.0,59752.0,0.0321]
[1728594291120,0.273757,59753.0,59752.0,0.0321]
[1728594291421,0.273757,59753.0,59752.0,0.0351]
[1728594292620,0.083753,59756.0,59752.0,0.0351]
[1728594292829,0.19,59757.0,59753.0,0.083756]
[1728594293119,0.083754,59755.0,59753.0,0.083756]
[1728594293717,0.083755,59754.0,59753.0,0.083756]
[1728594293917,0.083757,59753.0,59752.0,0.0341]
[1728594294329,0.083757,59753.0,59752.0,0.26214224]
[1728594295024,0.083757,59753.0,59752.0,0.25914224]
[1728594295414,0.083757,59753.0,59752.0,0.15875266]
[1728594295920,0.083757,59753.0,59752.0,0.16275266]
[1728594296324,0.04184857,59753.0,59752.0,0.16275266]
[1728594297035,0.04184857,59753.0,59752.0,0.16275264]
[1728594297221,0.08375,59758.0,59756.0,0.083752]
[1728594297523,0.08375,59758.0,59757.0,0.16025264]
[1728594297728,0.10850727,59763.0,59757.0,0.16025264]
[1728594297924,0.083744,59762.0,59761.0,0.3608]
[1728594298223,0.083744,59762.0,59761.0,0.44439654]
[1728594298629,0.083744,59762.0,59761.0,0.3608]
[1728594298830,0.083744,59762.0,59761.0,0.44439654]
[1728594299027,0.092744,59762.0,59761.0,0.44539654]
[1728594299525,0.10850727,59763.0,59759.0,0.08359654]
[1728594299729,0.10850727,59763.0,59761.0,0.002]
[1728594299730,0.014,59762.0,59761.0,0.002]
[1728594300527,0.00251071,59769.0,59761.0,0.49044835]
[1728594300720,0.00251071,59769.0,59767.0,0.3608]
[1728594300921,0.00251071,59769.0,59768.0,0.1276173]
[1728594301116,0.00251071,59769.0,59768.0,0.1588173]
[1728594301322,0.02720175,59769.0,59768.0,0.24232598]
[1728594301625,0.08624471,59769.0,59768.0,0.1588173]
[1728594302422,0.08624471,59769.0,59768.0,0.11567141]
[1728594302423,0.09424471,59769.0,59768.0,0.11567141]
[1728594302622,0.10524471,59769.0,59768.0,0.11567141]
[1728594302918,0.04536886,59769.0,59768.0,0.0322]
[1728594303123,0.12910286,59769.0,59768.0,0.0332]
[1728594304727,0.04536886,59769.0,59768.0,0.0332]
[1728594304933,0.02151071,59769.0,59768.0,0.116936]
[1728594305117,0.02151071,59769.0,59768.0,0.24454992]
[1728594305530,0.0084,59785.0,59768.0,0.16081392]
[1728594305724,0.083726,59775.0,59774.0,0.06670648]
[1728594305928,0.083723,59777.0,59773.0,0.06670648]
[1728594306126,0.083727,59774.0,59773.0,0.06670648]
[1728594306327,0.083719,59780.0,59772.0,0.42750648]
[1728594306628,0.083729,59773.0,59772.0,0.42750648]
[1728594307442,0.083729,59773.0,59772.0,0.3608]
[1728594307733,0.083729,59773.0,59772.0,0.42750648]
[1728594308323,0.088729,59773.0,59772.0,0.42850648]
[1728594308531,0.092729,59773.0,59772.0,0.42950648]
[1728594309034,0.092729,59773.0,59772.0,0.3628]
[1728594311429,0.11717796,59773.0,59772.0,0.3628]
[1728594312232,0.11717796,59773.0,59772.0,0.44653]
[1728594312233,0.03344896,59773.0,59772.0,0.44653]
[1728594314536,0.009,59773.0,59772.0,0.44653]
[1728594314835,0.083712,59785.0,59772.0,1.46472]
[1728594315133,0.083713,59784.0,59783.0,0.3608]
[1728594316633,0.083713,59784.0,59783.0,0.3618]
[1728594316634,0.087713,59784.0,59783.0,0.3618]
[1728594317729,0.087713,59784.0,59783.0,0.3628]
[1728594319243,0.004,59784.0,59783.0,0.3628]
[1728594320538,0.004,59784.0,59783.0,0.807315]
[1728594320741,0.004,59784.0,59783.0,0.87402148]
[1728594320942,0.004,59784.0,59783.0,0.807315]
[1728594322337,0.004,59784.0,59783.0,0.806315]
[1728594322533,0.004,59784.0,59783.0,0.807315]
[1728594323241,0.02479794,59785.0,59783.0,1.8254]
[1728594323438,0.083711,59786.0,59784.0,0.585513]
[1728594323641,0.083712,59785.0,59784.0,0.083713]
[1728594324537,0.083712,59785.0,59784.0,0.585513]
[1728594325347,0.083712,59785.0,59784.0,0.79647038]
[1728594325748,0.083712,59785.0,59784.0,0.29467038]
[1728594325937,0.083712,59785.0,59784.0,0.79647038]
[1728594326143,0.083712,59785.0,59784.0,0.79747038]
[1728594326337,0.083705,59790.0,59784.0,0.71508728]
[1728594326540,0.083705,59790.0,59789.0,0.3608]
[1728594327849,0.083705,59790.0,59789.0,0.42846636]
[1728594328042,0.083705,59790.0,59789.0,0.3618]
[1728594328551,0.083705,59790.0,59789.0,0.06766636]
[1728594329050,0.083705,59790.0,59789.0,0.06866636]
[1728594329246,0.083705,59790.0,59789.0,0.002]
[1728594332254,0.083718,59781.0,59780.0,0.3647]
[1728594332452,0.083718,59781.0,59780.0,0.3608]
[1728594333453,0.083718,59781.0,59780.0,0.3618]
[1728594333858,0.083718,59781.0,59780.0,0.3628]
[1728594335054,0.10810252,59781.0,59780.0,0.3628]
[1728594336652,0.10810252,59781.0,59780.0,0.002]
[1728594336852,0.10810252,59781.0,59780.0,0.3628]
[1728594337455,0.10810252,59781.0,59780.0,0.002]
[1728594337762,0.10810252,59781.0,59780.0,0.3628]
[1728594338658,0.10810252,59781.0,59780.0,0.49039446]
[1728594339164,0.10810252,59781.0,59780.0,0.12959446]
[1728594339462,0.10810252,59781.0,59780.0,0.49039446]
[1728594341266,0.06621387,59781.0,59780.0,0.49039446]
[1728594345667,0.06621387,59781.0,59780.0,0.12959446]
[1728594345963,1.16805387,59781.0,59777.0,0.0834927]
[1728594346168,0.06621387,59781.0,59780.0,0.06680868]
[1728594346370,0.083719,59780.0,59779.0,0.06680868]
[1728594346673,0.083727,59774.0,59773.0,0.3608]
[1728594348173,0.085727,59774.0,59773.0,0.3608]
[1728594349074,0.083729,59773.0,59768.0,0.083735]
[1728594349277,0.083729,59773.0,59772.0,0.3608]
[1728594350376,0.085729,59773.0,59772.0,0.3608]
[1728594351169,0.002,59773.0,59768.0,0.083735]
[1728594351381,0.083731,59772.0,59768.0,0.083735]
[1728594351581,0.002,59773.0,59768.0,0.083735]
[1728594351779,0.085729,59773.0,59772.0,0.3608]
[1728594352290,0.087729,59773.0,59772.0,0.3608]
[1728594354179,0.087729,59773.0,59771.0,0.0834927]
[1728594354180,0.004,59773.0,59771.0,0.0834927]
[1728594354374,0.11221651,59773.0,59772.0,0.3608]
[1728594354580,0.087729,59773.0,59772.0,0.3608]
[1728594355183,0.085729,59773.0,59772.0,0.3608]
[1728594355488,0.087729,59773.0,59772.0,0.3608]
[1728594355681,0.085729,59773.0,59772.0,0.3608]
[1728594355979,0.087729,59773.0,59772.0,0.3608]
[1728594357689,0.11202707,59773.0,59772.0,0.3608]
[1728594359283,0.11202707,59773.0,59772.0,0.4442927]
[1728594359587,0.11202707,59773.0,59772.0,0.3608]
[1728594359787,0.11202707,59773.0,59772.0,0.4442927]
[1728594360382,0.02829807,59773.0,59772.0,0.5280227]
[1728594360585,0.02829807,59773.0,59772.0,0.57213633]
[1728594360790,0.083718,59781.0,59772.0,0.67247104]
[1728594360987,0.083718,59781.0,59780.0,0.3608]
[1728594361178,0.083718,59781.0,59780.0,0.44423668]
[1728594361376,0.083718,59781.0,59780.0,0.57183186]
[1728594361783,0.083718,59781.0,59780.0,0.3608]
[1728594361992,0.085718,59781.0,59780.0,0.3608]
[1728594363784,0.083718,59781.0,59780.0,0.3618]
[1728594364185,0.083718,59781.0,59780.0,0.3628]
[1728594366095,0.10800874,59781.0,59780.0,0.3628]
[1728594368891,0.10800874,59781.0,59780.0,0.44623668]
[1728594369596,0.10800874,59781.0,59780.0,0.57383188]
[1728594373387,0.10800874,59781.0,59780.0,0.44623668]
[1728594373987,0.10800874,59781.0,59780.0,0.3628]
[1728594374186,0.10800874,59781.0,59780.0,0.49039473]
[1728594374589,0.10800874,59781.0,59780.0,0.57389105]
[1728594376194,0.10800874,59781.0,59780.0,0.44629632]
[1728594376692,0.10800874,59781.0,59780.0,0.3628]
[1728594383205,0.10800874,59781.0,59780.0,0.002]
[1728594383903,0.10800874,59781.0,59780.0,0.12959966]
[1728594385105,0.00092,59788.0,59780.0,0.31344268]
[1728594385311,0.00092,59788.0,59787.0,0.3608]
[1728594385612,0.00250959,59790.0,59787.0,0.444508]
[1728594385794,0.00250959,59790.0,59788.0,0.149708]
[1728594386510,0.083704,59791.0,59788.0,0.149708]
[1728594386511,0.06920299,59791.0,59789.0,0.1275728]
[1728594386699,0.06920299,59791.0,59790.0,0.4883728]
[1728594388002,0.06920299,59791.0,59790.0,0.4893728]
[1728594388400,0.06920299,59791.0,59790.0,0.3618]
[1728594388604,0.06920299,59791.0,59790.0,0.48936303]
[1728594389008,0.06920299,59791.0,59790.0,0.49036303]
[1728594390510,0.06920299,59791.0,59790.0,0.57374282]
[1728594391504,0.06920299,59791.0,59790.0,0.44617979]
[1728594391907,0.06920299,59791.0,59790.0,0.3628]
[1728594396909,0.02487147,59791.0,59789.0,0.0406118]
[1728594397124,0.083716,59782.0,59781.0,0.0039]
[1728594397412,0.083722,59778.0,59775.0,0.08337979]
[1728594397717,0.083722,59778.0,59774.0,0.08588898]
[1728594397918,0.083722,59778.0,59774.0,0.00250919]
[1728594398613,0.083722,59778.0,59777.0,0.3618]
[1728594398810,0.083722,59778.0,59777.0,0.3628]
[1728594399117,1.185602,59778.0,59777.0,0.3628]
[1728594399324,1.546402,59778.0,59777.0,0.002]
[1728594399715,0.946402,59778.0,59777.0,0.002]
[1728594401424,0.083734,59769.0,59768.0,0.3647]
[1728594401625,0.083734,59769.0,59768.0,0.3608]
[1728594401826,0.083731,59772.0,59768.0,0.3608]
[1728594402024,0.083734,59769.0,59768.0,0.3608]
[1728594402722,0.083734,59769.0,59768.0,0.3618]
[1728594403320,0.084734,59769.0,59768.0,0.3618]
[1728594404326,0.084734,59769.0,59768.0,0.001]
[1728594404629,0.084734,59769.0,59768.0,0.3618]
[1728594406327,0.10912639,59769.0,59768.0,0.3618]
[1728594406923,0.02539239,59769.0,59768.0,0.48941828]
[1728594408027,0.10912639,59769.0,59768.0,0.48941828]
[1728594409618,0.10912639,59769.0,59768.0,0.57268384]
[1728594410019,0.10912639,59769.0,59768.0,0.21188384]
[1728594410228,0.10912639,59769.0,59768.0,0.57268384]
[1728594410621,0.10912639,59769.0,59768.0,0.21188384]
[1728594410823,0.10912639,59769.0,59768.0,0.57268384]
[1728594412132,0.10912639,59769.0,59768.0,0.21188384]
[1728594412333,0.10912639,59769.0,59768.0,0.57268384]
[1728594412529,0.10912639,59769.0,59768.0,0.44506556]
[1728594413840,0.10912639,59769.0,59768.0,0.08426556]
[1728594414031,0.10912639,59769.0,59768.0,0.44506556]
[1728594414227,0.10912639,59769.0,59768.0,0.08426556]
[1728594414531,0.10912639,59769.0,59768.0,0.3618]
[1728594414732,0.10912639,59769.0,59768.0,0.001]
[1728594415129,0.10912639,59769.0,59768.0,0.3618]
[1728594415531,0.10912639,59769.0,59768.0,0.44506556]
[1728594416937,0.10912639,59769.0,59768.0,0.57268385]
[1728594417123,0.05885098,59769.0,59768.0,0.48941829]
[1728594418132,0.08341675,59769.0,59768.0,0.48941829]
[1728594419542,0.083726,59775.0,59770.0,0.083731]
[1728594419735,0.083726,59775.0,59768.0,0.58955129]
[1728594419736,0.083726,59775.0,59774.0,0.3608]
[1728594420441,0.083726,59775.0,59774.0,0.444527]
[1728594420740,0.085726,59775.0,59774.0,0.5287948]
[1728594421143,0.085726,59775.0,59774.0,0.445527]
[1728594421631,0.11071876,59775.0,59774.0,0.445527]
[1728594422630,0.02699276,59775.0,59774.0,0.445527]
[1728594422836,0.00251007,59781.0,59780.0,0.083719]
[1728594423142,0.00251007,59781.0,59780.0,0.444519]
[1728594423842,0.00351007,59781.0,59780.0,0.445519]
[1728594425244,0.00351007,59781.0,59780.0,0.446519]
[1728594427240,0.02811004,59781.0,59780.0,0.446519]
[1728594427440,0.00351007,59781.0,59780.0,0.446519]
[1728594429047,0.00351007,59781.0,59780.0,0.57410467]
[1728594430046,0.00351007,59781.0,59780.0,0.21330467]
[1728594430246,0.00351007,59781.0,59780.0,0.57410467]
[1728594431446,0.04533977,59782.0,59780.0,0.57410467]
[1728594431655,0.0699787,59782.0,59781.0,0.21088362]
[1728594432254,0.0699787,59782.0,59781.0,0.08329795]
[1728594432450,0.0709787,59782.0,59781.0,0.08329795]
[1728594433041,0.0699787,59782.0,59781.0,0.08329795]
[1728594433243,0.0709787,59782.0,59781.0,0.08429795]
[1728594433448,0.0709787,59782.0,59781.0,0.08529795]
[1728594435348,0.0709787,59782.0,59781.0,0.002]
[1728594436360,0.0709787,59782.0,59781.0,0.3628]
[1728594444048,0.0709787,59782.0,59781.0,0.002]
[1728594451761,0.0709787,59782.0,59764.0,0.3608]
[1728594451762,1.48827893,59782.0,59764.0,0.3608]
[1728594452062,1.48827893,59782.0,59771.0,0.3608]
[1728594452063,0.08373,59772.0,59771.0,0.3608]
[1728594454265,0.08373,59772.0,59764.0,0.3608]
[1728594454266,0.08374,59765.0,59764.0,0.3608]
[1728594455260,0.08374,59765.0,59764.0,0.3638]
[1728594456260,0.08374,59765.0,59764.0,0.3608]
[1728594456463,0.08574,59765.0,59764.0,0.3608]
[1728594457463,0.08674,59765.0,59764.0,0.3608]
[1728594459257,0.003,59765.0,59764.0,0.58855788]
[1728594459463,0.003,59765.0,59764.0,0.48842488]
[1728594459859,0.08674,59765.0,59764.0,0.48842488]
[1728594460064,0.083732,59771.0,59767.0,0.083737]
[1728594460363,0.083732,59771.0,59770.0,0.3608]
[1728594460561,0.083732,59771.0,59770.0,0.48842488]
[1728594461457,0.084732,59771.0,59770.0,0.48842488]
[1728594463671,0.10892953,59771.0,59770.0,0.48842488]
[1728594464264,0.10792953,59771.0,59770.0,0.48842488]
[1728594464564,0.10792953,59771.0,59770.0,0.58855788]
[1728594466163,0.10792953,59771.0,59770.0,0.3608]
[1728594468964,0.02419753,59771.0,59768.0,0.063]
[1728594469168,0.083734,59769.0,59768.0,0.063]
[1728594471668,0.083734,59769.0,59768.0,0.064]
[1728594472865,0.083734,59769.0,59768.0,0.4248]
[1728594473266,0.083734,59769.0,59768.0,0.064]
[1728594473472,0.083734,59769.0,59768.0,0.4248]
[1728594474278,0.083731,59772.0,59768.0,0.70555864]
[1728594474575,0.083731,59772.0,59769.0,0.28075864]
[1728594474764,0.083732,59771.0,59770.0,0.12761193]
[1728594475368,0.083732,59771.0,59770.0,0.48841193]
[1728594476170,0.083732,59771.0,59770.0,0.12761193]
[1728594476367,0.04183568,59771.0,59770.0,0.48841193]
[1728594476869,0.04183568,59771.0,59770.0,0.3608]
[1728594477070,0.04183568,59771.0,59770.0,0.4884162]
[1728594480170,0.04183568,59771.0,59770.0,0.1276162]
[1728594480866,0.0624,59773.0,59770.0,0.12762445]
[1728594481071,0.0624,59773.0,59767.0,0.3608]
[1728594481072,0.146129,59773.0,59772.0,0.08352839]
[1728594481272,0.146129,59773.0,59772.0,0.21115284]
[1728594481472,0.146129,59773.0,59772.0,0.12762445]
[1728594483677,0.146129,59773.0,59772.0,0.12862445]
[1728594484081,0.146129,59773.0,59772.0,0.12962445]
[1728594484878,0.146129,59773.0,59772.0,0.21316357]
[1728594485086,0.146129,59773.0,59772.0,0.002]
[1728594487678,0.146129,59773.0,59769.0,0.07078632]
[1728594487883,0.083733,59770.0,59769.0,0.05259691]
[1728594488481,0.083733,59770.0,59763.0,0.10018683]
[1728594488482,1.10192,59770.0,59763.0,0.10018683]
[1728594488794,0.083748,59759.0,59758.0,0.0039]
[1728594488975,0.083748,59759.0,59755.0,0.10030741]
[1728594489174,0.08376,59751.0,59750.0,0.00250985]
[1728594490477,0.58584,59751.0,59746.0,0.3608]
[1728594490685,0.083765,59747.0,59746.0,0.3608]
[1728594490882,0.09233966,59747.0,59746.0,0.3608]
[1728594492279,0.09233966,59747.0,59746.0,0.3748]
[1728594492474,0.09233966,59747.0,59746.0,0.3878]
[1728594494583,0.1166618,59747.0,59746.0,0.3878]
[1728594494781,0.1166618,59747.0,59746.0,0.027]
[1728594494983,0.1166618,59747.0,59746.0,0.3878]
[1728594500086,0.1166618,59747.0,59746.0,0.027]
[1728594500386,0.1166618,59747.0,59746.0,0.3878]
[1728594503099,0.1166618,59747.0,59746.0,0.027]
[1728594503395,0.083769,59744.0,59740.0,0.06684741]
[1728594503586,0.083774,59741.0,59739.0,0.3608]
[1728594503784,0.083769,59744.0,59736.0,0.06684741]
[1728594503984,0.083779,59737.0,59736.0,0.06684741]
[1728594505190,0.083779,59737.0,59736.0,0.01]
[1728594505393,0.083779,59737.0,59736.0,0.07684741]
[1728594507187,0.084779,59737.0,59736.0,0.021]
[1728594510199,0.1095578,59737.0,59736.0,0.021]
[1728594512496,0.0257788,59737.0,59736.0,0.104781]
[1728594514196,0.0257788,59737.0,59736.0,0.136581]
[1728594516096,0.0257788,59737.0,59736.0,0.26366076]
[1728594517214,0.1095578,59737.0,59736.0,0.26366076]
[1728594518616,0.1095578,59737.0,59736.0,0.36396817]
[1728594519211,0.1095578,59737.0,59736.0,0.26366076]
[1728594519517,0.0257788,59737.0,59736.0,0.41530778]
[1728594519718,0.087668,59746.0,59745.0,0.083768]
[1728594519911,0.083768,59746.0,59745.0,0.36229432]
[1728594520312,0.10761925,59746.0,59745.0,0.36229432]
[1728594521116,0.10761925,59746.0,59745.0,0.21084776]
[1728594521316,0.06570487,59746.0,59745.0,0.21084776]
[1728594521620,0.06570487,59746.0,59745.0,0.31119734]
[1728594521817,0.06570487,59746.0,59745.0,0.21084776]
[1728594522220,0.06570487,59746.0,59745.0,0.21284776]
[1728594522623,0.02385125,59746.0,59745.0,0.31320534]
[1728594522823,0.083767,59747.0,59745.0,0.31320534]
[1728594523018,0.083767,59747.0,59746.0,0.12707976]
[1728594523923,0.0039,59755.0,59747.0,0.083765]
[1728594524228,0.083754,59755.0,59752.0,0.083758]
[1728594524426,0.083754,59755.0,59753.0,0.12707976]
[1728594524623,0.083754,59755.0,59754.0,0.12707976]
[1728594525930,0.090754,59755.0,59754.0,0.12707976]
[1728594526318,0.11553159,59755.0,59754.0,0.12707976]
[1728594526523,0.11553159,59755.0,59753.0,0.083757]
[1728594526723,0.11253159,59755.0,59753.0,0.083757]
[1728594527124,0.11253159,59755.0,59753.0,0.15059156]
[1728594527125,0.02877759,59755.0,59753.0,0.15059156]
[1728594527326,0.03577759,59755.0,59753.0,0.15159156]
[1728594527923,0.03577759,59755.0,59754.0,0.42763456]
[1728594528129,0.03577759,59755.0,59754.0,0.3608]
[1728594528520,0.11953159,59755.0,59754.0,0.3608]
[1728594529523,0.11953159,59755.0,59754.0,0.3618]
[1728594531129,0.11953159,59755.0,59754.0,0.3923]
[1728594534238,0.11953159,59755.0,59754.0,0.44234965]
[1728594534442,0.11953159,59755.0,59754.0,0.4758432]